bitfinex-derivatives/quotes_ETHF0:USTF0_20240927
["timestamp","ask_amount","ask_price","bid_price","bid_amount"]
[1727438902419,5.4953,2654.8,2654.6,4.60818419]
[1727438902623,5.4953,2654.8,2654.6,4.23158419]
[1727438902925,5.4953,2654.8,2654.6,4.60818419]
[1727438903828,2.2875,2654.8,2654.6,4.60818419]
[1727438904422,5.4953,2654.8,2654.6,4.60818419]
[1727438904723,2.2875,2654.8,2654.6,4.60818419]
[1727438904917,5.4953,2654.8,2654.6,4.60818419]
[1727438905822,5.87188,2654.8,2654.6,4.23158419]
[1727438906325,0.37659,2654.7,2654.6,4.23158419]
[1727438907023,5.87188,2654.8,2654.6,4.23158419]
[1727438908916,0.37659,2654.7,2654.6,4.23158419]
[1727438909119,6.02677,2654.7,2654.6,3.00168419]
[1727438909319,0.37669,2654.1,2653.9,0.0283]
[1727438909523,1.13009,2654.0,2653.9,0.0283]
[1727438910032,1.13009,2654.0,2653.9,4.09658481]
[1727438910524,1.13009,2654.0,2653.9,0.0283]
[1727438910925,0.37673,2653.8,2653.5,1.5849]
[1727438911127,3.58453,2653.8,2653.5,1.5849]
[1727438911319,3.58453,2653.8,2653.6,4.20287486]
[1727438911525,3.2078,2653.8,2653.6,4.20287486]
[1727438913430,3.58453,2653.8,2653.6,4.20287486]
[1727438913636,3.2078,2653.8,2653.6,4.20287486]
[1727438914223,3.58453,2653.8,2653.6,4.20287486]
[1727438915620,0.37673,2653.7,2653.6,4.20287486]
[1727438915822,0.37673,2653.7,2653.3,1.24638808]
[1727438916121,0.37673,2653.7,2653.5,3.97361957]
[1727438916631,0.37673,2653.7,2653.2,0.7806]
[1727438916632,0.37676,2653.6,2653.2,0.7806]
[1727438916836,3.2078,2653.3,2653.2,0.7806]
[1727438917024,3.2078,2653.3,2653.2,0.96853436]
[1727438917221,3.2078,2653.3,2653.2,3.46729574]
[1727438918329,1.11656,2653.5,2653.2,3.46729574]
[1727438918534,3.2078,2653.4,2653.2,3.46729574]
[1727438918835,3.58458,2653.4,2653.2,2.49876138]
[1727438919131,3.2078,2653.4,2653.2,2.87556138]
[1727438920435,3.2078,2653.4,2653.3,0.37679]
[1727438920735,3.2078,2653.4,2653.3,4.70311921]
[1727438922040,3.2078,2653.4,2653.3,4.32632921]
[1727438922336,3.2078,2653.4,2653.2,4.4790211]
[1727438922638,3.2078,2653.4,2653.2,0.3768]
[1727438923033,3.2078,2653.4,2653.3,4.4790111]
[1727438923333,5.55060633,2653.7,2653.2,7.29650419]
[1727438923531,3.2078,2653.7,2653.2,7.29650419]
[1727438923835,3.2078,2653.7,2653.5,0.37676]
[1727438924234,3.2078,2653.7,2653.6,0.7439]
[1727438924435,3.2078,2653.7,2653.6,1.12065]
[1727438924630,6.9758,2653.7,2653.6,1.12065]
[1727438925031,3.2078,2653.7,2653.6,1.12065]
[1727438926227,2.75276633,2653.8,2653.7,0.37673]
[1727438926228,0.7867,2653.8,2653.7,0.37673]
[1727438926434,0.7867,2653.8,2653.7,1.18083]
[1727438926727,0.7867,2653.8,2653.7,1.99643]
[1727438927831,5.17386633,2654.1,2653.7,1.6197]
[1727438928139,0.8062,2654.1,2653.9,0.37669]
[1727438928338,0.8062,2654.1,2653.7,5.82022989]
[1727438928640,0.8062,2654.1,2654.0,4.72949971]
[1727438928844,0.8062,2654.1,2654.0,0.37669]
[1727438929343,0.8062,2654.1,2653.9,0.3767]
[1727438929743,0.8062,2654.1,2654.0,4.76742288]
[1727438930236,3.2078,2654.1,2654.0,8.37411288]
[1727438930431,2.95047277,2654.7,2654.0,11.76542288]
[1727438930432,5.93966633,2654.5,2654.0,11.76542288]
[1727438930632,3.9736,2654.5,2654.2,0.37665]
[1727438930829,3.9736,2654.5,2654.3,0.7891]
[1727438931028,4.35022,2654.5,2654.3,4.76792838]
[1727438931635,0.37663,2654.4,2654.3,4.76792838]
[1727438931838,3.9736,2654.5,2654.3,4.76792838]
[1727438932042,4.35023,2654.5,2654.3,4.76792838]
[1727438932247,0.37663,2654.4,2654.3,3.97882838]
[1727438932739,0.37663,2654.4,2654.2,3.94703381]
[1727438933243,3.9736,2654.5,2654.2,4.10219805]
[1727438933440,0.37664,2654.4,2654.2,4.10219805]
[1727438934839,0.37665,2654.3,2654.2,4.10219805]
[1727438935644,0.37668,2654.1,2654.0,0.7628]
[1727438935952,0.37668,2654.1,2653.7,2.687]
[1727438935953,0.3767,2654.0,2653.7,2.687]
[1727438936248,1.1767,2654.0,2653.8,3.95004409]
[1727438936943,1.1767,2654.0,2653.9,0.0283]
[1727438941645,0.8,2654.0,2653.9,0.0283]
[1727438941844,0.8,2654.0,2653.9,0.7797]
[1727438942843,1.17669,2654.0,2653.9,0.7797]
[1727438944855,1.95915671,2654.0,2653.7,1.72355738]
[1727438945250,1.95915671,2654.0,2653.8,3.94786021]
[1727438945453,1.15916671,2653.9,2653.8,3.94786021]
[1727438945846,1.1767,2654.0,2653.8,1.35684513]
[1727438946552,0.3767,2653.9,2653.8,1.35684513]
[1727438946953,0.3767,2653.9,2653.6,0.16145736]
[1727438947145,0.37672,2653.8,2653.6,1.65145736]
[1727438947349,3.58452,2653.8,2653.7,4.23431153]
[1727438947751,0.37674,2653.7,2653.6,4.23431153]
[1727438948053,0.37674,2653.7,2653.5,3.1114]
[1727438948258,0.7631,2653.6,2653.5,3.1114]
[1727438948554,0.7631,2653.6,2653.5,5.70291126]
[1727438948956,1.13985,2653.6,2653.5,5.70291126]
[1727438949444,0.37677,2653.5,2653.1,5.26054686]
[1727438949647,0.37677,2653.5,2653.1,6.34554686]
[1727438949848,0.37677,2653.5,2653.4,4.13938638]
[1727438950045,2.2531,2653.6,2653.2,4.13938638]
[1727438950249,2.2531,2653.6,2653.1,4.85554686]
[1727438950454,2.2531,2653.6,2653.2,4.33909344]
[1727438950645,0.37676,2653.5,2653.2,4.33909344]
[1727438951248,0.37678,2653.4,2653.2,4.33909344]
[1727438952146,0.37677,2653.5,2653.2,4.33909344]
[1727438952348,0.37676,2653.5,2653.2,4.33909344]
[1727438952755,0.37678,2653.4,2653.2,4.33909344]
[1727438954451,0.37677,2653.5,2653.2,4.71589344]
[1727438954654,0.37677,2653.5,2653.2,4.33909344]
[1727438954964,0.37677,2653.5,2653.2,4.71589344]
[1727438955158,1.96606633,2653.5,2653.3,0.37678]
[1727438955456,1.96606633,2653.5,2653.4,4.95879066]
[1727438955667,1.96606633,2653.5,2653.4,6.08087066]
[1727438955956,2.72916633,2653.6,2653.4,6.08087066]
[1727438958857,4.14556,2653.5,2653.4,4.18589066]
[1727438959062,9.31942633,2653.5,2653.2,1.5452]
[1727438959262,5.55062633,2653.5,2653.2,1.92199]
[1727438961265,1.96606633,2653.4,2653.2,1.92199]
[1727438961466,2.34284633,2653.4,2653.2,1.5452]
[1727438961668,0.37678,2653.4,2653.2,1.5452]
[1727438962073,5.55063633,2653.5,2653.2,1.5452]
[1727438962368,2.34285633,2653.4,2653.2,1.5452]
[1727438962574,0.37679,2653.4,2653.2,1.5452]
[1727438962863,2.34285633,2653.4,2653.2,1.5452]
[1727438963271,0.37679,2653.4,2653.2,1.5452]
[1727438964270,2.34285633,2653.4,2653.2,1.5452]
[1727438964570,0.7526,2653.3,2653.2,1.5452]
[1727438964959,0.7526,2653.3,2653.2,1.922]
[1727438965365,5.17386633,2653.5,2653.2,1.922]
[1727438965565,5.92646633,2653.5,2653.2,1.922]
[1727438965765,6.30323633,2653.5,2653.2,1.922]
[1727438966061,1.96606633,2653.4,2653.2,1.5452]
[1727438966267,2.34284633,2653.4,2653.2,1.5452]
[1727438966663,1.96606633,2653.4,2653.2,1.922]
[1727438967371,2.34284633,2653.4,2653.2,1.5452]
[1727438968269,0.37679,2653.3,2653.2,1.5452]
[1727438968663,1.96606633,2653.4,2653.2,1.5452]
[1727438968664,2.34285633,2653.4,2653.2,1.5452]
[1727438968864,0.37679,2653.3,2653.2,1.5452]
[1727438969276,0.37679,2653.3,2653.2,0.7787]
[1727438969277,2.34285633,2653.3,2653.2,0.7787]
[1727438969469,1.96606633,2653.3,2653.2,0.7787]
[1727438970067,1.96606633,2653.3,2653.0,0.691]
[1727438970280,6.26417633,2653.2,2652.9,0.37684]
[1727438970462,0.37682,2653.1,2652.9,0.37684]
[1727438970677,2.66866633,2653.1,2653.0,4.0232815]
[1727438971874,3.04548633,2653.1,2653.0,4.0232815]
[1727438972266,1.07942,2653.1,2653.0,4.0232815]
[1727438972462,2.66866633,2653.1,2653.0,4.0232815]
[1727438972866,0.7026,2653.1,2653.0,4.0232815]
[1727438973062,0.7026,2653.1,2653.0,4.4001115]
[1727438973376,1.07942,2653.1,2653.0,4.0232815]
[1727438973774,0.7026,2653.1,2653.0,4.4001115]
[1727438974973,0.7026,2653.1,2653.0,4.4284115]
[1727438975173,0.7026,2653.1,2653.0,0.0283]
[1727438975174,1.07942,2653.1,2653.0,0.0283]
[1727438975374,1.07942,2653.1,2653.0,0.40513]
[1727438975375,0.7026,2653.1,2653.0,0.40513]
[1727438975774,1.07942,2653.1,2653.0,0.0283]
[1727438977776,5.17386633,2653.2,2653.1,0.37682]
[1727438977977,3.2078,2653.2,2653.1,1.86682]
[1727438979583,1.96606633,2653.3,2653.2,0.3768]
[1727438979779,1.96606633,2653.4,2653.3,0.37679]
[1727438979979,1.96606633,2653.4,2653.2,1.77519]
[1727438981581,1.96606633,2653.4,2653.2,1.3984]
[1727438981972,1.96606633,2653.4,2653.2,1.7752]
[1727438982180,1.96606633,2653.4,2653.2,1.3984]
[1727438982584,1.96606633,2653.4,2653.2,1.7752]
[1727438983085,2.34284633,2653.4,2653.2,1.3984]
[1727438983787,1.96606633,2653.4,2653.2,1.7752]
[1727438984892,1.96606633,2653.4,2653.3,4.26250613]
[1727438985489,1.74177,2653.5,2653.3,4.26250613]
[1727438986395,1.365,2653.5,2653.3,4.63929613]
[1727438986790,1.365,2653.5,2653.3,4.26250613]
[1727438986993,3.2078,2653.6,2653.4,1.49]
[1727438987195,3.2078,2653.6,2653.4,2.2169]
[1727438987393,3.2078,2653.6,2653.4,2.59367]
[1727438987691,3.2078,2653.6,2653.5,3.97761833]
[1727438987892,0.7044,2653.8,2653.5,4.35437833]
[1727438988096,0.7044,2653.8,2653.6,0.741]
[1727438988394,0.7044,2653.8,2653.6,1.4517]
[1727438988587,1.08112,2653.8,2653.6,1.4517]
[1727438989290,3.17047899,2653.8,2653.6,1.4517]
[1727438989590,0.37673,2653.7,2653.6,1.4517]
[1727438989789,3.58453,2653.7,2653.6,0.7107]
[1727438989993,0.37675,2653.6,2653.3,0.37678]
[1727438990189,1.11375,2653.6,2653.3,0.37679]
[1727438990392,0.37676,2653.5,2653.4,4.13104714]
[1727438990700,0.37676,2653.5,2653.2,1.8285]
[1727438990701,1.06166,2653.5,2653.3,4.26635879]
[1727438990995,0.6856,2653.4,2653.2,1.8285]
[1727438991494,0.6856,2653.4,2653.3,4.26635879]
[1727438993794,2.55238,2653.4,2653.3,4.26635879]
[1727438995403,5.02090223,2653.4,2653.3,4.26635879]
[1727438995594,4.64412223,2653.4,2653.3,4.26635879]
[1727438995789,5.02090223,2653.4,2653.3,4.26635879]
[1727438996002,2.55238,2653.4,2653.3,4.26635879]
[1727438996203,5.02106351,2653.4,2653.3,4.26635879]
[1727438996407,2.55238,2653.4,2653.3,4.26635879]
[1727438996605,2.1756,2653.4,2653.3,4.26635879]
[1727438996795,4.64433259,2653.4,2653.3,4.26635879]
[1727438997801,2.1756,2653.4,2653.3,4.26635879]
[1727438998199,5.02114107,2653.4,2653.3,4.26635879]
[1727438998600,2.55238,2653.4,2653.3,4.26635879]
[1727438998801,2.1756,2653.4,2653.3,4.26635879]
[1727439001600,2.55238,2653.4,2653.3,4.26635879]
[1727439004107,2.1756,2653.4,2653.3,4.26635879]
[1727439004916,2.1756,2653.4,2653.2,1.8285]
[1727439004917,2.1756,2653.4,2653.2,1.4517]
[1727439005101,2.55238,2653.4,2653.2,1.4517]
[1727439005499,2.55238,2653.4,2653.2,1.8285]
[1727439006315,3.2078,2653.3,2653.2,1.8285]
[1727439007102,5.67739603,2653.3,2653.2,1.8285]
[1727439007413,2.46959603,2653.4,2653.3,0.37679]
[1727439007607,2.46959603,2653.5,2653.3,2.1719]
[1727439007808,2.46959603,2653.5,2653.4,4.48192796]
[1727439008107,2.46959603,2653.5,2653.4,0.37678]
[1727439008303,2.46959603,2653.6,2653.4,0.37678]
[1727439008514,2.46959603,2653.6,2653.5,0.37676]
[1727439008808,2.46920272,2653.6,2653.5,0.37676]
[1727439010412,2.46910337,2653.6,2653.5,0.37676]
[1727439010612,2.46910337,2653.6,2653.4,4.14056441]
[1727439010802,5.392,2653.8,2653.4,4.14056441]
[1727439010803,2.46901581,2653.5,2653.4,4.51733441]
[1727439012208,2.46901581,2653.5,2653.4,4.14056441]
[1727439013112,1.86675,2653.6,2653.4,4.51734441]
[1727439013113,2.46901581,2653.6,2653.4,4.51734441]
[1727439013512,1.97501439,2653.5,2653.4,4.51734441]
[1727439013712,2.46901581,2653.6,2653.4,4.14056441]
[1727439013916,1.97499566,2653.5,2653.4,4.51733441]
[1727439014313,2.46901581,2653.6,2653.4,4.51733441]
[1727439014515,2.46901581,2653.6,2653.4,4.14056441]
[1727439014715,2.46901581,2653.6,2653.4,4.51733441]
[1727439015415,2.84576581,2653.6,2653.4,4.14056441]
[1727439015613,2.46901581,2653.6,2653.4,4.14056441]
[1727439016219,2.46901581,2653.6,2653.4,4.51733441]
[1727439016220,5.67681581,2653.6,2653.4,4.51733441]
[1727439016619,6.05356581,2653.6,2653.4,4.14056441]
[1727439016815,2.84577581,2653.5,2653.4,4.14056441]
[1727439017120,2.46901581,2653.5,2653.4,4.14056441]
[1727439017320,2.84577581,2653.5,2653.4,4.14056441]
[1727439017722,2.84577581,2653.5,2653.3,0.0283]
[1727439017723,0.37677,2653.5,2653.3,0.0283]
[1727439017919,3.91868224,2653.4,2653.3,0.0283]
[1727439019526,7.12648224,2653.4,2653.3,0.0283]
[1727439020117,7.50326224,2653.4,2653.3,0.0283]
[1727439020419,6.52428,2653.4,2653.3,0.0283]
[1727439021318,10.29308,2653.4,2653.3,0.0283]
[1727439021915,13.25237479,2653.4,2653.3,0.0283]
[1727439025634,0.37679,2653.3,2653.0,0.37682]
[1727439025930,5.67778065,2653.1,2653.0,4.58094224]
[1727439027525,5.67778065,2653.1,2653.0,4.20412224]
[1727439027731,5.67778065,2653.1,2653.0,4.58095224]
[1727439028427,5.67778065,2653.1,2653.0,4.20412224]
[1727439028730,5.67778065,2653.1,2652.9,2.10591089]
[1727439029039,3.3477549,2653.0,2652.9,2.10591089]
[1727439029331,2.6758549,2653.0,2652.9,2.10591089]
[1727439039035,1.9757549,2653.0,2652.9,2.10591089]
[1727439042940,3.4657549,2653.0,2652.9,1.3961]
[1727439043236,3.4657549,2653.0,2652.6,0.37689]
[1727439043237,5.63644,2653.0,2652.6,0.37689]
[1727439043442,3.2078,2652.8,2652.7,0.6583]
[1727439043741,5.67802991,2652.8,2652.7,0.6583]
[1727439044037,3.8823,2652.8,2652.7,0.6583]
[1727439044536,6.35252991,2652.8,2652.7,0.6583]
[1727439045040,3.8823,2652.8,2652.7,0.6583]
[1727439045239,6.72938991,2652.8,2652.7,0.6583]
[1727439045439,3.8823,2652.8,2652.7,0.6583]
[1727439045638,3.8823,2652.8,2652.6,0.6951]
[1727439045833,1.97541712,2652.7,2652.6,0.6951]
[1727439046034,3.46541712,2652.7,2652.5,0.6463]
[1727439046343,4.15471712,2652.7,2652.5,0.6463]
[1727439046848,1.97541712,2652.6,2652.5,0.6463]
[1727439048041,1.49,2652.6,2652.3,0.6664]
[1727439048241,2.67942781,2652.5,2652.3,1.3127]
[1727439048449,2.67942781,2652.5,2652.4,4.01927945]
[1727439048450,3.9123,2652.5,2652.4,4.01927945]
[1727439048737,3.9123,2652.5,2652.3,1.3127]
[1727439048738,7.37683983,2652.5,2652.3,1.3127]
[1727439048932,0.6948,2652.4,2652.3,1.3127]
[1727439049139,2.66933983,2652.4,2652.3,1.3127]
[1727439049334,0.6948,2652.4,2652.3,1.68963]
[1727439049739,0.6948,2652.4,2652.3,1.3127]
[1727439049935,0.6948,2652.4,2652.3,0.6463]
[1727439050135,0.6948,2652.4,2652.2,0.71161488]
[1727439050339,1.3561,2652.4,2652.2,0.71161488]
[1727439050541,1.3561,2652.4,2652.3,0.37693]
[1727439050734,1.3561,2652.4,2652.2,0.37694]
[1727439051636,1.3561,2652.4,2652.1,1.3301]
[1727439052043,1.3561,2652.4,2652.3,0.37693]
[1727439052544,1.3561,2652.4,2652.2,0.37694]
[1727439052840,1.3561,2652.4,2652.3,0.37693]
[1727439053042,5.88683983,2652.5,2652.4,0.37692]
[1727439053252,3.9123,2652.5,2652.3,0.37692]
[1727439053743,0.7045,2652.5,2652.3,0.37692]
[1727439054148,0.7045,2652.5,2652.3,0.37693]
[1727439054447,0.7045,2652.5,2652.4,0.37692]
[1727439057039,1.4018,2652.5,2652.4,0.37692]
[1727439058247,3.2078,2652.6,2652.5,0.3769]
[1727439058443,3.2078,2652.6,2652.5,3.241]
[1727439058638,3.2078,2652.6,2652.5,11.63595484]
[1727439062143,1.97453983,2652.9,2652.7,0.37688]
[1727439062346,1.97453983,2653.0,2652.9,0.37685]
[1727439062650,5.18233983,2653.4,2652.9,5.58981647]
[1727439062945,5.18233983,2653.4,2653.1,1.86681]
[1727439063251,5.18233983,2653.4,2653.2,4.09981647]
[1727439065144,5.55911983,2653.4,2653.2,4.09981647]
[1727439065544,5.18233983,2653.4,2653.2,4.09981647]
[1727439066541,5.55911983,2653.4,2653.2,4.09981647]
[1727439066752,0.37679,2653.3,2653.2,4.09981647]
[1727439066951,0.37682,2653.1,2652.9,1.061]
[1727439067252,0.6717,2653.0,2652.9,5.25885968]
[1727439067445,1.3585,2653.0,2652.9,5.25885968]
[1727439068960,5.19986983,2653.0,2652.9,4.19785968]
[1727439069253,4.82303983,2653.0,2652.9,4.19785968]
[1727439070154,3.33303983,2653.0,2652.8,4.1272139]
[1727439070355,1.49,2652.9,2652.5,3.2078]
[1727439070549,7.04920983,2652.8,2652.6,1.061]
[1727439070745,1.06468,2652.7,2652.6,5.18725419]
[1727439071053,0.6878,2652.7,2652.4,1.08221]
[1727439071254,0.7122,2652.6,2652.4,1.08221]
[1727439071555,0.6886,2652.5,2652.4,1.08221]
[1727439071752,0.6886,2652.5,2652.4,0.7053]
[1727439071953,0.6886,2652.5,2652.4,5.01792633]
[1727439072250,0.6886,2652.5,2652.4,4.31262633]
[1727439078454,0.6886,2652.5,2652.4,8.45994633]
[1727439078849,0.6886,2652.5,2652.4,8.08302633]
[1727439079963,0.6886,2652.5,2652.4,4.31262633]
[1727439080960,0.6886,2652.5,2652.4,4.68954633]
[1727439082764,0.6886,2652.5,2652.4,4.31262633]
[1727439083763,0.6886,2652.5,2652.4,4.68954633]
[1727439087653,0.6886,2652.5,2652.4,5.0113472]
[1727439089163,5.18233983,2652.6,2652.5,0.3769]
[1727439089470,1.97453983,2652.6,2652.5,0.3769]
[1727439089655,1.97453983,2652.7,2652.5,0.3769]
[1727439090461,5.18233983,2652.7,2652.5,0.3769]
[1727439092163,1.97453983,2652.7,2652.5,0.3769]
[1727439093765,1.97453983,2652.7,2652.4,4.6627272]
[1727439093972,1.49,2652.5,2652.4,4.34092633]
[1727439094161,4.6978,2652.5,2652.4,4.34092633]
[1727439094365,5.0747,2652.5,2652.4,4.34092633]
[1727439094663,5.7984,2652.5,2652.4,4.34092633]
[1727439094861,9.5688,2652.5,2652.4,4.34092633]
[1727439095175,12.03902991,2652.5,2652.4,0.0283]
[1727439095567,12.98129991,2652.5,2652.4,0.0283]
[1727439096071,10.51107,2652.5,2652.4,0.0283]
[1727439096866,16.51107,2652.5,2652.4,0.0283]
[1727439098071,10.51107,2652.5,2652.4,0.0283]
[1727439098285,16.51107,2652.5,2652.4,0.0283]
[1727439098762,18.52904306,2652.5,2652.4,0.0283]
[1727439100870,15.5688,2652.5,2652.4,0.0283]
[1727439101780,19.47131306,2652.5,2652.4,0.0283]
[1727439101981,16.51107,2652.5,2652.4,0.0283]
[1727439102684,15.5688,2652.5,2652.4,0.0283]
[1727439103579,12.361,2652.5,2652.4,0.0283]
[1727439103777,0.37694,2652.3,2652.1,0.37696]
[1727439104082,3.46156356,2652.2,2652.1,0.37696]
[1727439104268,6.66936356,2652.2,2652.1,0.37696]
[1727439105175,7.04631356,2652.2,2652.1,0.37696]
[1727439105786,7.04591311,2652.2,2652.1,0.37696]
[1727439105970,0.37696,2652.1,2652.0,0.37696]
[1727439106276,0.775,2652.1,2652.0,0.37696]
[1727439106669,2.74616311,2652.1,2652.0,0.37696]
[1727439106874,0.775,2652.1,2652.0,0.37696]
[1727439107377,3.12313311,2652.1,2651.8,4.2103499]
[1727439107579,3.12313311,2652.1,2651.9,0.37699]
[1727439107580,3.0535,2652.0,2651.9,0.37699]
[1727439107977,3.43049,2652.0,2651.8,0.377]
[1727439108287,1.97116311,2652.1,2651.9,1.49]
[1727439108577,1.97116311,2652.4,2652.3,0.37693]
[1727439108788,6.74246311,2652.5,2652.3,0.37693]
[1727439109084,1.97116311,2652.4,2652.3,0.37693]
[1727439109792,1.97116311,2652.4,2652.2,0.37694]
[1727439109979,3.46116311,2652.4,2652.2,0.37694]
[1727439110180,3.46116311,2652.4,2652.2,4.36472479]
[1727439110485,1.97116311,2652.3,2652.2,3.98778479]
[1727439110687,3.46116311,2652.4,2652.2,4.36472479]
[1727439111291,1.97116311,2652.3,2652.2,4.36472479]
[1727439114181,3.95445446,2652.4,2652.2,4.36472479]
[1727439114584,1.97280274,2652.3,2652.2,4.36472479]
[1727439115178,1.97280274,2652.5,2652.2,9.24818479]
[1727439115389,1.97280274,2652.5,2652.4,0.37692]
[1727439115584,1.97280274,2652.6,2652.5,0.3769]
[1727439116187,1.9728445,2652.6,2652.5,0.3769]
[1727439116591,2.46445446,2652.7,2652.5,0.3769]
[1727439116790,2.46445446,2652.7,2652.6,0.7455]
[1727439116989,2.84133446,2652.7,2652.6,0.7455]
[1727439117387,2.46445446,2652.7,2652.6,0.7455]
[1727439117580,2.46445446,2652.7,2652.6,1.12239]
[1727439118591,2.46445446,2652.7,2652.6,0.7455]
[1727439119188,7.54031446,2652.8,2652.6,0.7455]
[1727439120594,7.54031446,2652.8,2652.6,1.12239]
[1727439122687,0.37688,2652.7,2652.6,0.7455]
[1727439122989,2.84133446,2652.7,2652.6,0.7455]
[1727439123184,2.46445446,2652.7,2652.6,1.12239]
[1727439123582,6.56587,2652.8,2652.6,1.12239]
[1727439123583,9.03032446,2652.8,2652.6,1.12239]
[1727439124287,2.46445446,2652.7,2652.6,1.12239]
[1727439124882,2.46445446,2652.8,2652.7,0.37688]
[1727439125091,2.46445446,2652.9,2652.8,0.37686]
[1727439125292,2.46445446,2653.0,2652.9,0.37685]
[1727439126086,5.67225446,2653.1,2653.0,0.37683]
[1727439126292,3.58462,2653.1,2653.0,0.37683]
[1727439126494,3.58462,2653.1,2652.9,0.37684]
[1727439126700,2.465955,2653.0,2652.9,0.37684]
[1727439127191,3.955955,2653.0,2652.9,0.37684]
[1727439127787,1.49,2653.0,2652.9,0.37684]
[1727439129396,7.540575,2653.1,2652.9,0.37684]
[1727439130300,1.97226288,2653.0,2652.9,0.37684]
[1727439130601,7.540575,2653.1,2652.9,0.37684]
[1727439131407,1.97211635,2653.0,2652.9,0.37684]
[1727439131905,7.540575,2653.1,2652.9,0.37684]
[1727439132110,1.97205333,2653.0,2652.9,0.37684]
[1727439134007,1.97205333,2653.0,2652.8,1.10155]
[1727439134395,1.97205333,2653.0,2652.9,0.37685]
[1727439135501,1.97205333,2653.2,2653.1,0.37682]
[1727439135813,1.97205333,2653.4,2653.3,0.37679]
[1727439135993,5.94475333,2653.5,2653.4,1.49]
[1727439136193,3.9727,2653.5,2653.4,1.86678]
[1727439136391,1.97205333,2653.7,2653.5,0.37676]
[1727439136597,1.97205333,2653.8,2653.7,1.49]
[1727439137202,5.55656333,2653.9,2653.7,1.49]
[1727439137507,1.97205333,2653.8,2653.6,1.5146]
[1727439137697,1.97205333,2653.8,2653.6,1.89134]
[1727439138201,5.55656333,2653.9,2653.6,3.38134]
[1727439138406,5.55656333,2653.9,2653.6,1.5146]
[1727439139104,3.58451,2653.9,2653.6,1.89135]
[1727439139306,3.2078,2653.9,2653.8,0.37672]
[1727439139497,1.5458,2654.0,2653.8,0.37672]
[1727439139698,1.5458,2654.0,2653.9,0.3767]
[1727439139900,0.7649,2654.0,2653.9,0.3767]
[1727439141311,0.7794,2654.3,2653.9,3.768]
[1727439141503,1.97205333,2654.4,2654.2,0.37666]
[1727439141504,0.738,2654.4,2654.2,0.37666]
[1727439142009,0.738,2654.4,2654.3,4.47224745]
[1727439142310,0.738,2654.4,2654.3,0.37665]
[1727439142610,0.738,2654.4,2654.3,4.09559745]
[1727439143114,0.738,2654.4,2654.2,4.5480442]
[1727439143319,0.738,2654.4,2654.2,0.37665]
[1727439143603,0.738,2654.4,2654.3,4.1713942]
[1727439144200,0.738,2654.4,2654.1,1.12377]
[1727439144201,0.738,2654.4,2654.2,4.02366959]
[1727439144411,0.738,2654.4,2654.1,1.12377]
[1727439144919,0.738,2654.4,2654.2,4.02366959]
[1727439146711,0.738,2654.4,2654.2,4.40032959]
[1727439147013,0.738,2654.4,2654.2,4.40031959]
[1727439148311,0.738,2654.4,2654.3,0.37665]
[1727439148615,0.738,2654.4,2654.3,4.35210491]
[1727439149115,0.738,2654.4,2654.3,3.97545491]
[1727439149614,0.738,2654.4,2654.2,4.07059087]
[1727439149814,0.738,2654.4,2654.1,0.7471]
[1727439150115,0.738,2654.4,2654.2,4.02405708]
[1727439150309,0.738,2654.4,2654.2,4.40071708]
[1727439151415,0.738,2654.4,2654.3,0.37665]
[1727439151807,0.738,2654.4,2654.3,4.67327241]
[1727439152208,0.738,2654.4,2654.3,4.29662241]
[1727439152614,0.738,2654.4,2654.3,0.37665]
[1727439153021,0.738,2654.4,2654.3,4.0633114]
[1727439153313,0.738,2654.4,2654.2,4.0633114]
[1727439153515,0.738,2654.4,2654.3,0.37665]
[1727439153716,0.738,2654.4,2654.2,0.37666]
[1727439153909,0.738,2654.4,2654.3,4.02800233]
[1727439154309,0.738,2654.4,2654.3,4.40465233]
[1727439154603,0.738,2654.4,2654.2,4.40466233]
[1727439154807,0.738,2654.4,2654.3,0.37665]
[1727439155215,0.738,2654.4,2654.3,4.30798598]
[1727439156511,0.738,2654.4,2654.3,7.53798598]
[1727439156713,0.738,2654.4,2654.3,7.16133598]
[1727439157821,0.738,2654.4,2654.3,7.53798598]
[1727439158715,0.738,2654.4,2654.3,7.16133598]
[1727439159117,0.738,2654.4,2654.3,7.53798598]
[1727439159316,0.738,2654.4,2654.3,7.16133598]
[1727439159521,0.738,2654.4,2654.3,7.53798598]
[1727439160318,0.738,2654.4,2654.3,5.79798598]
[1727439161123,0.738,2654.4,2654.3,5.42133598]
[1727439161821,0.738,2654.4,2654.3,5.79798598]
[1727439162026,0.738,2654.4,2654.3,5.42133598]
[1727439162326,0.738,2654.4,2654.3,5.79798598]
[1727439163718,0.738,2654.4,2654.3,5.42133598]
[1727439165132,1.4499,2654.4,2654.3,5.42133598]
[1727439166123,0.738,2654.4,2654.3,5.79798598]
[1727439170028,0.7794,2654.6,2654.5,0.37662]
[1727439170229,0.7794,2654.6,2654.5,1.49]
[1727439170627,0.7794,2654.6,2654.5,1.86662]
[1727439171630,0.7794,2654.6,2654.5,1.49]
[1727439172229,0.7794,2654.6,2654.5,1.86662]
[1727439172929,0.7794,2654.6,2654.5,2.57882]
[1727439173237,0.7612,2654.7,2654.6,0.37661]
[1727439174439,0.7612,2654.7,2654.6,4.73891928]
[1727439177329,0.7395,2655.0,2654.8,0.37657]
[1727439177529,1.5132,2655.0,2654.9,1.86656]
[1727439179332,3.48525333,2655.0,2654.8,1.86657]
[1727439180124,1.97205333,2654.9,2654.8,1.86657]
[1727439180937,3.48525333,2655.0,2654.8,1.86657]
[1727439181139,1.97205333,2654.9,2654.8,1.86657]
[1727439181642,1.97205333,2654.9,2654.8,0.37657]
[1727439181935,3.979155,2655.0,2654.5,0.89837382]
[1727439182241,1.97091213,2654.7,2654.6,5.59525415]
[1727439182735,3.11550213,2654.7,2654.6,4.10525415]
[1727439182941,1.14459,2654.7,2654.6,4.10525415]
[1727439183146,8.867745,2654.7,2654.6,2.92525415]
[1727439183331,8.867745,2654.7,2654.2,0.37666]